bitfinex/quotes_ETHUSD_20240703
["timestamp","ask_amount","ask_price","bid_price","bid_amount"]
[1720007686406,3.0773592,3312.8,3312.1,0.06037335]
[1720007686606,3.0773592,3312.8,3312.0,5.44739]
[1720007686912,3.01868,3312.7,3312.0,5.44739]
[1720007687604,0.0587692,3312.6,3312.0,5.44739]
[1720007689385,0.0587692,3312.6,3312.0,2.4281]
[1720007689789,3.0775692,3312.6,3312.0,2.4281]
[1720007690192,3.01902,3312.4,3312.0,2.4281]
[1720007690516,3.01902,3312.4,3311.4,3.01978]
[1720007690517,3.01915,3312.2,3311.5,2.3447]
[1720007691082,0.0587692,3312.1,3311.5,5.3644]
[1720007691417,3.01915,3312.2,3311.5,5.3644]
[1720007691615,0.0587692,3312.1,3311.5,5.3644]
[1720007691815,3.0191,3312.3,3311.5,5.3644]
[1720007692025,0.0587692,3312.2,3311.6,3.01968]
[1720007692519,0.0587692,3312.2,3311.7,2.34958319]
[1720007692817,0.0587692,3312.2,3311.9,2.2683]
[1720007693008,0.0586836,3312.1,3312.0,0.06037745]
[1720007693321,3.01883,3312.6,3311.9,2.2683]
[1720007693622,0.0586836,3312.5,3311.9,2.2683]
[1720007694391,3.01899,3312.4,3311.9,2.2683]
[1720007694600,3.01915,3312.2,3311.9,2.2683]
[1720007694816,0.0586836,3312.1,3311.9,2.2683]
[1720007700424,3.01911,3312.3,3311.9,2.2683]
[1720007700734,0.0586836,3312.2,3311.9,2.2683]
[1720007701082,0.0586836,3312.2,3312.0,0.06038362]
[1720007701333,3.0,3312.7,3312.0,0.06038362]
[1720007701536,0.0586836,3312.1,3312.0,0.06038362]
[1720007701831,0.05862779,3312.1,3312.0,0.06038362]
[1720007702002,3.01881,3312.6,3312.0,0.06038362]
[1720007702205,0.05862779,3312.5,3312.0,0.06038362]
[1720007702541,0.05862779,3312.5,3312.1,1.118]
[1720007702824,0.05862779,3312.5,3312.2,2.4644]
[1720007703002,0.05863523,3312.4,3312.2,2.4644]
[1720007703199,3.01862,3312.8,3312.2,2.4644]
[1720007703425,0.05870593,3312.7,3312.2,2.4644]
[1720007703595,3.01877,3312.6,3312.2,2.4644]
[1720007703801,6.03763,3312.6,3312.2,2.4644]
[1720007704227,0.05870593,3312.5,3312.2,2.4644]
[1720007704773,3.01904,3312.4,3312.2,2.4644]
[1720007704971,3.01914,3312.2,3311.8,2.4326]
[1720007705479,0.05872081,3312.1,3311.8,2.4326]
[1720007708269,3.01938,3312.0,3311.4,2.4917]
[1720007708509,3.01951,3311.8,3311.4,2.4917]
[1720007708664,0.05864267,3311.9,3311.1,3.02013]
[1720007708859,3.01919,3312.2,3311.3,3.5264]
[1720007709169,3.01946,3311.9,3311.4,0.06038758]
[1720007709482,3.019,3312.4,3311.4,1.17838758]
[1720007709705,0.0586129,3311.8,3311.4,4.19819758]
[1720007709898,3.01914,3312.2,3311.4,3.08019758]
[1720007710102,0.0586129,3311.7,3311.5,1.118]
[1720007710405,3.01914,3312.2,3311.7,2.4084]
[1720007710757,3.019,3312.4,3311.7,2.4084]
[1720007710962,6.01869,3312.7,3311.9,2.3437]
[1720007711195,3.0,3312.7,3311.9,3.4617]
[1720007711370,3.0,3312.7,3312.0,4.19768552]
[1720007712801,3.0,3312.7,3312.2,2.3277]
[1720007713008,3.01837,3313.1,3312.3,3.0794123]
[1720007713162,6.03676,3313.1,3312.3,3.0794123]
[1720007713359,3.0,3313.0,3312.3,3.0794123]
[1720007713592,6.01841,3313.0,3312.3,3.0794123]
[1720007714488,0.05882873,3312.9,3312.3,3.0794123]
[1720007715006,0.05882873,3312.9,3312.3,0.0603723]
[1720007716470,0.05882873,3312.9,3312.3,3.0793923]
[1720007719099,0.05882873,3312.9,3312.4,2.2668]
[1720007719308,0.05882873,3312.9,3312.5,0.06037091]
[1720007721883,0.05882873,3312.9,3312.8,9.41948]
[1720007722084,3.01711,3314.5,3313.2,2.2643]
[1720007722085,3.01755,3314.0,3313.2,2.2643]
[1720007722272,6.03472,3314.2,3313.4,1.118]
[1720007722613,3.01741,3314.1,3313.4,1.118]
[1720007722800,3.01741,3314.1,3313.2,6.46083816]
[1720007722971,3.01642,3315.2,3313.6,3.186]
[1720007723172,3.01697,3314.6,3313.7,2.4888]
[1720007723495,4.13497,3314.6,3313.7,3.6068]
[1720007723897,3.01697,3314.6,3313.8,3.01762]
[1720007725004,3.01704,3314.5,3313.8,3.01762]
[1720007725204,0.603401,3314.4,3313.7,2.4888]
[1720007725698,3.01704,3314.5,3313.7,2.4888]
[1720007726221,3.01704,3314.5,3313.8,3.01768]
[1720007729704,0.05497724,3314.4,3313.8,3.01768]
[1720007731221,0.05497724,3314.4,3313.7,2.4888]
[1720007732423,3.01733,3314.2,3313.4,2.2899]
[1720007733170,3.01763,3313.9,3313.2,2.3784]
[1720007733320,3.0177,3313.8,3313.2,2.3784]
[1720007733717,3.01788,3313.6,3313.2,2.3784]
[1720007734148,3.01763,3313.9,3312.8,2.4231]
[1720007734354,3.01814,3313.3,3312.8,2.4231]
[1720007734638,3.07375891,3313.2,3312.8,2.4231]
[1720007734836,3.01832,3313.1,3312.5,2.322]
[1720007735039,3.01853,3312.9,3312.1,2.4198]
[1720007735438,3.0186,3312.8,3312.1,2.4198]
[1720007735715,3.07406891,3312.8,3312.1,2.4198]
[1720007736323,3.01875,3312.7,3312.1,2.4198]
[1720007736919,0.05546891,3312.6,3312.1,2.4198]
[1720007737352,0.05546891,3312.6,3311.7,2.3843]
[1720007737353,3.01897,3312.4,3311.7,2.3843]
[1720007737557,3.01887,3312.5,3311.7,2.3843]
[1720007737719,3.07456735,3312.3,3311.7,2.3843]
[1720007737923,3.01905,3312.3,3311.7,2.3843]
[1720007738127,0.05551735,3312.2,3311.7,2.3843]
[1720007740025,3.07465735,3312.2,3311.7,2.3843]
[1720007742355,3.01925,3312.1,3311.7,2.3843]
[1720007742576,3.01932,3312.0,3311.3,5.4866]
[1720007742778,3.07462866,3312.0,3311.3,2.4866]
[1720007743248,3.01943,3311.9,3311.3,2.4866]
[1720007743453,3.07399729,3311.9,3311.3,2.4866]
[1720007745372,3.07399729,3311.9,3311.7,2.3034]
[1720007745373,0.05456729,3311.9,3311.7,2.3034]
[1720007745580,0.05456729,3311.9,3311.8,0.06038263]
[1720007745738,3.01895,3312.5,3311.8,0.06038263]
[1720007746176,3.01908,3312.3,3311.7,2.36378224]
[1720007746647,0.05449647,3312.2,3311.7,2.36378224]
[1720007750468,0.05449647,3312.2,3311.7,2.3034]
[1720007751141,3.07369647,3312.2,3311.7,2.3034]
[1720007751341,3.01925,3312.1,3311.3,2.2598]
[1720007751772,0.05459339,3312.0,3311.3,2.2598]
[1720007752271,3.07391339,3312.0,3311.3,2.2598]
[1720007752771,3.07391339,3312.0,3310.9,2.3497]
[1720007752772,3.01947,3311.9,3310.9,2.3497]
[1720007752976,3.01959,3311.8,3310.9,5.37002]
[1720007753134,3.01961,3311.7,3310.9,5.37002]
[1720007753763,0.0544331,3311.6,3310.9,5.67626801]
[1720007754080,3.01961,3311.7,3310.9,5.67626801]
[1720007754288,3.01961,3311.7,3310.9,2.65594801]
[1720007754289,0.05436972,3311.5,3310.9,2.65594801]
[1720007754446,3.01979,3311.5,3310.9,2.65594801]
[1720007754817,0.05436972,3311.4,3310.9,2.65594801]
[1720007756487,0.05436972,3311.4,3310.9,2.3497]
[1720007756786,3.02007,3311.2,3310.5,2.2927]
[1720007757197,0.05431379,3311.1,3310.5,2.2927]
[1720007758284,0.05431379,3311.1,3310.5,5.31337]
[1720007760770,0.05431379,3311.1,3310.5,2.2927]
[1720007760973,3.02028,3311.0,3310.5,2.2927]
[1720007761199,3.02033,3310.9,3310.5,2.2927]
[1720007761536,3.07447225,3310.9,3310.5,2.2927]
[1720007762128,3.02065,3310.6,3309.9,2.4809]
[1720007762632,3.02088,3310.3,3309.9,2.4809]
[1720007762795,3.02088,3310.3,3309.3,2.681]
[1720007762796,3.0211,3310.1,3309.5,2.2943]
[1720007763118,0.05236492,3310.0,3309.5,2.2943]
[1720007764181,0.05236492,3310.0,3309.7,3.0214]
[1720007764490,6.04151,3310.5,3309.8,0.06042015]
[1720007764684,0.0522006,3309.9,3309.8,0.06042015]
[1720007764901,3.02071,3310.5,3309.8,0.06042015]
[1720007765096,0.0522006,3309.9,3309.8,0.06042015]
[1720007765342,6.04112,3310.7,3309.8,0.06042015]
[1720007765492,0.0522006,3309.9,3309.8,2.39102015]
[1720007765692,3.02051,3310.7,3309.8,2.39102015]
[1720007765890,3.02051,3310.7,3309.9,3.02123]
[1720007766199,3.02051,3310.7,3310.0,0.06041596]
[1720007768209,3.02061,3310.6,3310.0,0.06041596]
[1720007769701,3.02037,3310.9,3310.0,0.06041596]
[1720007769943,3.02052,3310.7,3310.0,0.06041596]
[1720007770097,3.02037,3310.9,3310.0,0.06041596]
[1720007770302,3.02037,3310.9,3310.0,3.08154596]
[1720007770543,3.02037,3310.9,3310.1,2.3038]
[1720007771242,6.04004,3311.3,3310.2,0.06041437]
[1720007771404,6.02006,3311.2,3310.3,3.63118618]
[1720007771795,6.02006,3311.2,3310.3,0.61040618]
[1720007772033,3.02043,3310.8,3310.1,5.3248]
[1720007773515,3.02041,3310.9,3310.1,5.3248]
[1720007774616,0.05226036,3310.8,3310.1,5.3248]
[1720007775235,3.07270036,3310.8,3310.1,5.3248]
[1720007775603,3.07270036,3310.8,3310.1,2.3038]
[1720007776525,3.07270036,3310.8,3310.1,5.32484]
[1720007778835,3.07270036,3310.8,3309.9,3.02117]
[1720007778836,3.02053,3310.7,3309.9,3.02117]
[1720007779446,3.02087,3310.3,3309.7,2.4831]
[1720007780005,0.05241348,3310.2,3309.7,2.4831]
[1720007781944,3.07339348,3310.2,3309.7,2.4831]
[1720007783447,3.02108,3310.1,3309.7,2.4831]
[1720007783748,3.02115,3310.0,3309.5,1.26303536]
[1720007784246,0.05199147,3309.9,3309.5,1.26303536]
[1720007785344,3.02108,3310.1,3309.5,1.26303536]
[1720007785544,0.05196159,3309.8,3309.5,1.26303536]
[1720007785761,3.02108,3310.1,3309.4,2.2546]
[1720007785926,0.05196159,3309.7,3309.4,5.27624]
[1720007786112,3.02108,3310.1,3309.4,5.27624]
[1720007786449,0.051984,3310.0,3309.4,5.27624]
[1720007789154,0.051984,3310.0,3309.4,2.2546]
[1720007789337,0.051984,3310.0,3309.6,3.02151]
[1720007789543,3.02075,3310.5,3309.6,3.08193294]
[1720007789878,0.05201389,3310.4,3309.7,3.02141]
[1720007790151,0.05201389,3310.4,3309.8,3.0816908]
[1720007790452,0.05201389,3310.4,3309.9,2.39]
[1720007790645,13.63076904,3310.8,3309.9,5.41123]
[1720007790848,0.05201389,3310.3,3310.1,3.02104]
[1720007791049,10.34043,3310.8,3309.9,5.41123]
[1720007791268,10.34043,3310.8,3309.9,5.41118]
[1720007791462,3.02043,3310.8,3309.9,5.41118]
[1720007791654,0.05201389,3310.7,3309.9,5.41118]
[1720007791872,0.05201389,3310.7,3310.0,3.0211]
[1720007792037,0.05201389,3310.7,3310.1,3.02105]
[1720007795059,0.05201389,3310.7,3309.9,8.43233]
[1720007795225,0.05201389,3310.7,3310.0,3.02109]
[1720007795562,0.05145553,3310.7,3310.0,3.02109]
[1720007796165,0.05145553,3310.7,3310.1,3.02104]
[1720007797743,0.05145553,3310.7,3310.1,6.04203]
[1720007798132,0.05145553,3310.7,3309.9,2.39]
[1720007798133,3.01993,3311.4,3310.3,3.02083]
[1720007798330,3.07175345,3311.2,3310.4,5.57573807]
[1720007799279,3.07175345,3311.2,3310.5,3.02068]
[1720007799450,0.05165345,3311.2,3310.5,3.02068]
[1720007799646,0.05165345,3311.2,3310.6,0.06040663]
[1720007799848,0.05165345,3311.2,3310.9,2.4611]
[1720007800086,3.01966,3311.7,3310.9,5.48142]
[1720007800260,0.05165345,3311.1,3310.9,5.48142]
[1720007800589,0.05165345,3311.0,3310.9,5.48142]
[1720007801053,3.0,3311.6,3310.9,5.48142]
[1720007801251,3.0,3311.6,3311.0,3.0202]
[1720007801466,0.05165345,3311.5,3311.0,3.0202]
[1720007801783,3.0,3311.7,3311.0,3.0805993]
[1720007801989,0.05165345,3311.4,3311.0,3.0805993]
[1720007802194,6.01951,3311.8,3311.0,3.0805993]
[1720007802401,0.05165345,3311.3,3311.0,3.0805993]
[1720007802547,6.01951,3311.8,3311.0,3.0805993]
[1720007802747,0.05165345,3311.7,3311.0,3.0805993]
[1720007803991,0.05165345,3311.7,3311.0,0.0603993]
[1720007804168,0.05165345,3311.7,3311.0,3.0806193]
[1720007806669,0.05165345,3311.7,3311.1,3.08045846]
[1720007807091,10.33926,3312.1,3311.3,3.01988]
[1720007807271,0.05197452,3311.6,3311.3,6.03976]
[1720007807472,10.33926,3312.1,3311.4,3.01985]
[1720007807800,0.05197452,3312.0,3311.4,3.01985]
[1720007808002,3.05197452,3312.0,3311.4,3.01985]
[1720007808867,3.05197452,3312.0,3311.6,3.01961]
[1720007810002,3.05197452,3312.0,3311.2,2.4198]
[1720007811204,3.05197452,3312.0,3311.2,5.43984]
[1720007811985,6.07130452,3312.0,3311.2,5.43984]
[1720007815072,6.07130452,3312.0,3311.3,3.01994]
[1720007815970,9.09069452,3312.0,3311.2,2.4198]
[1720007816978,3.01942,3311.9,3311.2,2.4198]
[1720007817179,3.01942,3311.9,3311.2,5.43984]
[1720007817374,0.05197452,3311.8,3311.2,5.43984]
[1720007824327,0.05197452,3311.8,3311.2,8.45983]
[1720007824686,1.17097452,3311.8,3311.2,5.43979]
[1720007824907,1.17097452,3311.8,3310.8,5.27096]
[1720007824908,4.91146697,3311.8,3310.8,5.27096]
[1720007825218,4.13871,3311.6,3310.8,5.27096]
[1720007825621,1.119,3311.3,3310.6,3.02055]
[1720007825814,4.13903,3311.3,3310.5,5.27128]
[1720007826016,3.02025,3311.0,3310.5,2.2506]
[1720007826383,0.05225453,3310.9,3310.5,2.2506]
[1720007827712,0.05225453,3310.9,3310.3,5.28112]
[1720007827892,0.05225453,3310.9,3310.4,3.02078]
[1720007828092,3.01992,3311.4,3310.4,3.02078]
[1720007828306,0.05220227,3310.8,3310.5,3.02064]
[1720007828711,3.02006,3311.2,3310.5,3.02064]
[1720007828910,0.05220227,3310.7,3310.5,3.02064]
[1720007829091,3.02006,3311.2,3310.5,3.02064]
[1720007829413,0.05220227,3311.1,3310.5,3.02064]
[1720007829616,0.05220227,3311.1,3310.6,6.10154385]
[1720007829951,0.05220227,3311.1,3310.7,2.4082]
[1720007830120,3.01974,3311.6,3310.8,3.08074021]
[1720007830297,0.05220227,3311.0,3310.8,6.10108021]
[1720007830498,3.01938,3312.0,3311.0,2.3499]
[1720007830729,3.01938,3312.0,3311.1,3.63048254]
[1720007830892,0.05220227,3311.9,3311.1,3.63048254]
[1720007831594,0.05220227,3311.9,3311.3,3.01991]
[1720007831792,0.05220227,3311.9,3311.3,3.08030258]
[1720007832092,7.32,3312.2,3311.3,0.06039258]
[1720007832435,7.32,3312.2,3311.5,6.0394]
[1720007832587,0.05220227,3312.1,3311.5,6.0394]
[1720007832792,3.01907,3312.3,3311.5,6.0394]
[1720007833001,3.05220227,3312.2,3311.5,6.0394]
[1720007833594,3.05220227,3312.2,3311.6,3.01966]
[1720007835035,3.05220227,3312.2,3311.5,3.0801283]
[1720007835395,3.05220227,3312.2,3311.5,6.0998383]
[1720007835708,3.05220227,3312.2,3311.6,3.01966]
[1720007836127,0.05220227,3312.2,3311.7,3.01958]
[1720007836542,3.01887,3312.5,3311.8,3.01949]
[1720007837055,0.05223957,3312.4,3311.8,3.01949]
[1720007840213,0.05223957,3312.4,3312.2,3.01911]
[1720007840413,3.01854,3312.9,3312.2,3.01911]
[1720007840641,0.05265009,3312.7,3312.2,3.01911]
[1720007841112,0.05265009,3312.7,3312.3,3.01904]
[1720007841617,0.05277692,3312.6,3312.3,3.01904]
[1720007841823,7.32,3312.8,3312.3,3.01904]
[1720007842126,7.32,3312.8,3312.4,3.01887]
[1720007842127,0.05277692,3312.7,3312.4,3.01887]
[1720007842537,7.32,3312.8,3312.4,6.03775]
[1720007842742,0.05277692,3312.6,3312.4,6.03776]
[1720007842912,7.32,3312.8,3312.4,6.03776]
[1720007843121,0.05277692,3312.5,3312.4,3.01887]
[1720007843361,7.32,3312.8,3312.4,3.01887]
[1720007843512,0.05277692,3312.5,3312.2,3.01908]
[1720007843713,7.32,3312.8,3312.2,3.01908]
[1720007844138,0.05277692,3312.7,3312.2,3.01908]
[1720007845251,3.01841,3313.0,3312.2,6.03815]
[1720007845458,0.05277692,3312.6,3312.2,6.03815]
[1720007845640,3.01841,3313.0,3312.2,6.03815]
[1720007845831,0.05277692,3312.5,3312.2,6.03815]
[1720007846147,3.01841,3313.0,3312.2,6.03815]
[1720007846338,0.05277692,3312.4,3312.3,3.01905]
[1720007846543,3.0,3313.1,3312.4,3.01895]
[1720007846735,4.602524,3313.1,3312.4,3.01895]
[1720007846951,0.05277692,3313.0,3312.4,6.03784]
[1720007847363,0.05277692,3313.0,3312.4,3.01889]
[1720007848655,0.05313509,3312.9,3312.4,3.01889]
[1720007849144,3.0,3313.1,3312.4,3.01889]
[1720007849324,0.05313509,3312.8,3312.4,3.01889]
[1720007849676,0.05313509,3312.7,3312.4,3.01889]
[1720007850051,1.118,3312.8,3312.4,3.01889]
[1720007850364,0.05313509,3312.6,3312.4,3.01889]
[1720007850515,1.118,3312.8,3312.4,3.01889]
[1720007850718,0.05313509,3312.5,3312.4,3.01889]
[1720007850918,1.118,3312.8,3312.4,3.01889]
[1720007851117,0.05313509,3312.5,3312.4,3.01889]
[1720007851361,1.118,3312.8,3312.4,3.01889]
[1720007851530,7.32,3313.0,3312.4,3.01889]
[1720007851531,0.05313509,3312.5,3312.4,3.01889]
[1720007851732,1.118,3312.8,3312.4,3.01889]
[1720007851926,0.05313509,3312.5,3312.4,3.01889]
[1720007852127,1.118,3312.8,3312.4,3.01889]
[1720007852369,8.438,3313.0,3312.4,3.01889]
[1720007852538,0.05313509,3312.5,3312.4,3.01889]
[1720007852722,1.118,3312.8,3312.4,3.01889]
[1720007852925,0.05313509,3312.5,3312.4,3.01889]
[1720007853159,1.118,3312.8,3312.4,3.01889]
[1720007853366,0.05313509,3312.5,3312.4,3.01889]
[1720007853541,1.118,3312.8,3312.4,3.01889]
[1720007853742,0.05313509,3312.5,3312.4,3.01889]
[1720007853945,1.118,3312.8,3312.4,3.01889]
[1720007854465,0.05313509,3312.7,3312.4,3.01889]
[1720007854994,1.118,3312.8,3312.4,3.01889]
[1720007855170,0.05313509,3312.6,3312.4,3.01889]
[1720007855339,1.118,3312.8,3312.4,3.01889]
[1720007855539,0.05313509,3312.5,3312.4,3.01889]
[1720007855733,1.118,3312.8,3312.4,3.01889]
[1720007856242,1.118,3312.6,3312.1,2.4296]
[1720007856446,1.118,3312.6,3312.1,5.44882]
[1720007856748,0.05313509,3312.5,3312.1,5.44882]
[1720007857137,1.118,3312.8,3312.1,5.44882]
[1720007857342,0.05310152,3312.4,3312.2,3.01913]
[1720007857570,1.118,3312.7,3312.2,3.01913]
[1720007858065,0.05310152,3312.6,3312.2,3.01913]
[1720007858776,1.118,3312.8,3312.2,3.01913]
[1720007858977,0.05313882,3312.5,3312.2,3.01913]
[1720007859281,0.05313882,3312.4,3312.2,3.01913]
[1720007859637,1.118,3312.8,3312.2,3.01913]
[1720007859837,0.05313882,3312.3,3312.2,3.01913]
[1720007860038,8.438,3313.0,3312.2,6.03822]
[1720007860281,0.05313882,3312.9,3312.2,6.03822]
[1720007860446,0.05313882,3312.9,3312.3,3.01904]
[1720007862763,0.05313882,3312.9,3312.5,3.01885]
[1720007863075,4.13623,3313.2,3312.5,3.01885]
[1720007863380,0.05313882,3312.8,3312.2,3.01909]
[1720007863582,1.118,3313.0,3312.2,3.01909]
[1720007863753,7.32,3313.7,3312.2,3.01909]
[1720007863754,0.05313882,3312.7,3312.2,3.01909]
[1720007863946,0.05313882,3312.7,3312.1,2.4296]
[1720007863947,1.118,3312.6,3312.1,2.4296]
[1720007864350,0.05313882,3312.5,3312.1,2.4296]
[1720007864548,0.05313882,3312.5,3311.9,3.01938]
[1720007865744,0.05313882,3312.5,3312.0,3.0193]
[1720007866294,0.05313882,3312.4,3312.2,3.01909]
[1720007866477,0.05313882,3312.4,3311.9,1.118]
[1720007866478,0.05313882,3312.4,3311.9,3.0194]
[1720007866661,1.118,3312.7,3312.0,3.01924]
[1720007866867,3.01866,3312.8,3312.2,2.3382]
[1720007866868,0.05315374,3312.3,3312.2,2.3382]
[1720007867064,3.01866,3312.8,3312.2,2.3382]
[1720007867445,0.05315374,3312.7,3312.2,2.3382]
[1720007867881,1.17115374,3312.7,3312.2,2.3382]
[1720007869110,0.05315374,3312.7,3312.5,3.01886]
[1720007869391,7.32,3313.0,3312.5,6.03764]
[1720007869559,0.05313507,3312.9,3312.5,6.03764]
[1720007869759,0.05313507,3312.9,3312.5,3.01878]
[1720007870055,0.05313507,3312.9,3312.5,6.0376]
[1720007872972,0.05313507,3312.9,3312.5,3.01878]
[1720007876275,0.05313507,3312.9,3312.5,3.01878]
[1720007876808,0.05322085,3312.8,3312.5,3.01878]
[1720007876979,1.118,3313.1,3312.5,3.01878]
[1720007877173,0.05322458,3313.0,3312.5,3.01878]
[1720007878206,1.118,3313.1,3312.5,3.01878]
[1720007878207,0.05322458,3312.9,3312.5,3.01878]
[1720007878380,1.118,3313.1,3312.5,3.01878]
[1720007878584,0.05322458,3313.0,3312.5,6.03759]
[1720007878912,3.0,3313.2,3312.7,3.01866]
[1720007879113,0.05337004,3312.9,3312.8,3.01859]
[1720007879596,1.118,3313.2,3312.7,3.01868]
[1720007879790,0.05338868,3313.1,3312.7,3.01868]
[1720007880111,1.118,3313.0,3312.7,3.01868]
[1720007880286,1.118,3313.0,3312.5,3.01881]
[1720007880806,0.05338868,3312.9,3312.5,3.01881]
[1720007881769,0.05338868,3312.9,3312.3,3.01898]
[1720007881974,0.05338868,3312.9,3312.3,6.03797]
[1720007882270,1.118,3312.9,3312.4,3.01894]
[1720007882502,0.05336258,3312.8,3312.4,3.01894]
[1720007883009,1.118,3312.6,3312.0,3.01927]
[1720007883196,3.07203258,3312.8,3312.0,3.01927]
[1720007883197,3.07203258,3312.8,3312.1,3.01923]
[1720007883375,1.118,3312.6,3312.1,3.01923]
[1720007883683,0.05337377,3312.5,3312.1,3.01923]
[1720007884287,7.15534,3312.8,3312.1,3.01923]
[1720007884495,0.05337377,3312.4,3312.1,3.01923]
[1720007884802,0.05337377,3312.3,3312.1,3.01923]
[1720007884988,4.13665,3312.8,3312.1,3.01923]
[1720007885191,0.05337377,3312.7,3312.4,3.01889]
[1720007885514,7.32,3313.0,3312.4,3.01889]
[1720007885814,0.05329172,3312.6,3312.4,3.01889]
[1720007885989,0.05336258,3312.5,3312.4,3.01889]
[1720007886190,7.32,3313.0,3312.5,3.01881]
[1720007886372,0.05336258,3312.9,3312.5,3.01881]
[1720007886776,4.13632,3313.1,3312.3,3.01895]
[1720007887080,1.118,3312.9,3312.3,3.01895]
[1720007887616,1.118,3312.9,3312.4,3.01895]
[1720007887794,0.05336631,3312.8,3312.4,3.01895]
[1720007888593,0.05336631,3312.8,3312.2,8.38276]
[1720007888787,0.05336631,3312.8,3312.0,3.01923]
[1720007888788,3.07201631,3312.8,3312.0,3.01923]
[1720007888989,1.118,3312.7,3312.0,3.01923]
[1720007889527,1.118,3312.7,3311.9,2.3608]
[1720007889528,0.05336631,3312.6,3311.9,2.3608]
[1720007890085,0.05336631,3312.6,3312.0,3.01927]
[1720007890511,0.05336631,3312.6,3311.9,2.3608]
[1720007890512,3.01887,3312.5,3311.9,2.3608]
[1720007891142,0.05336631,3312.4,3311.9,2.3608]
[1720007891429,3.07231631,3312.4,3311.9,2.3608]
[1720007895838,0.05336631,3312.4,3312.2,4.13709]
[1720007896012,3.01847,3313.0,3312.2,4.13709]
[1720007896013,3.01852,3312.9,3312.2,4.13709]
[1720007896205,0.04963412,3312.8,3312.2,4.13709]
[1720007896617,0.04963412,3312.8,3312.3,2.2796]
[1720007896815,3.01855,3312.9,3312.3,2.2796]
[1720007897040,0.049679,3312.8,3312.3,2.2796]
[1720007899038,0.049679,3312.8,3312.3,5.35899298]
[1720007899344,3.01841,3313.0,3312.3,5.35899298]
[1720007899549,0.04968648,3312.7,3312.3,5.35899298]
[1720007899730,3.01841,3313.0,3312.3,5.35899298]
[1720007899908,0.04968648,3312.6,3312.3,5.35899298]
[1720007900128,6.03688,3313.0,3312.3,5.35899298]
[1720007900328,0.04968648,3312.5,3312.3,5.35899298]
[1720007900533,3.01841,3313.0,3312.3,5.35899298]
[1720007901028,3.01841,3313.0,3312.3,2.2796]
[1720007901029,0.04968648,3312.9,3312.3,2.2796]
[1720007901223,3.06818648,3312.9,3312.3,2.2796]
[1720007901636,0.04968648,3312.9,3312.3,2.2796]
[1720007901850,3.06821648,3312.9,3312.3,2.2796]
[1720007903564,3.01869,3312.7,3312.0,5.43907]
[1720007903901,3.01869,3312.7,3312.0,6.55707]
[1720007904035,0.04968648,3312.6,3312.0,6.55707]
[1720007904432,0.04968648,3312.6,3312.0,2.4198]
[1720007904640,3.01886,3312.5,3312.0,2.4198]
[1720007905181,0.04968648,3312.4,3312.0,2.4198]
[1720007907079,0.04968648,3312.4,3312.0,3.5378]
[1720007907768,0.04968648,3312.4,3312.1,3.01918]
[1720007908275,0.04968648,3312.3,3312.0,2.4198]
[1720007908453,6.03767,3312.6,3312.0,3.5378]
[1720007908637,0.04968648,3312.5,3312.0,3.5378]
[1720007909838,3.06855648,3312.5,3312.0,3.5378]
[1720007913688,3.01896,3312.4,3312.0,3.5378]
[1720007913980,0.04969395,3312.3,3312.0,3.5378]
[1720007914574,0.04969395,3312.3,3312.0,2.4198]
[1720007916481,0.04969395,3312.3,3311.6,3.01963]
[1720007916482,0.04969395,3312.3,3311.6,2.4692]
[1720007916636,1.118,3312.5,3311.6,2.4692]
[1720007916637,3.01942,3311.9,3311.6,2.4692]
[1720007916833,0.04969395,3311.8,3311.6,2.4692]
[1720007917038,3.06921395,3311.8,3311.3,2.3498]
[1720007918077,3.01961,3311.7,3311.3,2.3498]
[1720007918247,1.118,3312.1,3311.0,3.02018]
[1720007918248,3.01983,3311.5,3311.1,1.118]
[1720007918588,0.04969395,3311.4,3311.1,1.118]
[1720007918743,0.04969395,3311.4,3311.1,4.118]
[1720007919349,0.04969395,3311.4,3311.1,3.0]
[1720007919575,0.04969395,3311.4,3311.1,1.118]
[1720007919738,0.04969395,3311.4,3311.1,4.118]
[1720007921385,0.04969395,3311.4,3311.1,1.118]
[1720007921585,0.04969395,3311.4,3311.0,2.3989]
[1720007923577,0.04969395,3311.4,3311.1,1.17839636]
[1720007923743,0.04969395,3311.4,3311.3,3.4183]
[1720007923945,3.01896,3312.4,3311.5,3.01977]
[1720007924240,3.0,3313.3,3311.8,1.118]
[1720007924438,3.01896,3312.4,3311.8,0.06037974]
[1720007924677,0.04911033,3312.3,3311.7,2.4146]
[1720007924882,3.0193,3312.1,3311.4,5.43441]
[1720007925066,0.04927122,3312.0,3311.4,5.43441]
[1720007925251,3.06860122,3312.0,3311.4,2.4146]
[1720007925897,3.06860122,3312.0,3311.4,5.43446]
[1720007926099,0.04927122,3312.0,3311.4,5.43446]
[1720007926388,0.04927122,3312.0,3311.5,1.118]
[1720007926546,3.01922,3312.2,3311.5,1.118]
[1720007927276,3.01924,3312.1,3311.5,1.118]
[1720007927486,0.04923755,3312.0,3311.5,1.118]
[1720007931646,0.04923755,3312.0,3311.4,5.43446]
[1720007931984,0.04923755,3312.0,3311.4,6.55246]
[1720007932694,3.06856755,3312.0,3311.4,6.55246]
[1720007933360,3.06856755,3312.0,3311.5,0.06038614]
[1720007933889,0.04923755,3312.0,3311.5,0.06038614]
[1720007934101,3.01922,3312.2,3311.6,1.118]
[1720007934301,0.04773451,3312.1,3311.7,0.06038575]
[1720007935309,3.06697451,3312.1,3311.7,0.06038575]
[1720007937306,3.06697451,3312.1,3311.6,1.118]
[1720007937509,3.06697451,3312.1,3311.7,0.06038581]
[1720007937816,3.06697451,3312.1,3311.6,1.118]
[1720007937976,3.06697451,3312.1,3311.7,0.06038582]
[1720007938912,3.06697451,3312.1,3311.5,3.01977]
[1720007939203,3.06697451,3312.1,3311.6,1.118]
[1720007939800,0.04773451,3312.1,3311.6,1.118]